[Event "Titled Tuesday Blitz September 13 Late 2022"]
[White "Lewicki, Miroslaw"]
[Black "Kamsky, Gata"]
[WhiteFideId "1113380"]
[BlackFideId "2000024"]
[WhiteElo "2204"]
[BlackElo "2666"]
[Result "0-1"]
[Round "02"]
[TimeControl "180+1"]
[Date "2022.09.13"]
[WhiteClock "0:00:06"]
[BlackClock "0:01:04"]

1. g3 {[%clk 0:02:52]}  d5 {[%clk 0:02:56]} 2. Bg2 {[%clk 0:02:53]}  Nf6 {[%clk 0:02:55]} 3. Nf3 {[%clk 0:02:49]}  g6 {[%clk 0:02:55]} 4. O-O {[%clk 0:02:35]}  Bg7 {[%clk 0:02:54]} 5. d4 {[%clk 0:02:34]}  O-O {[%clk 0:02:54]} 6. c3 {[%clk 0:02:35]}  c6 {[%clk 0:02:49]} 7. Re1 {[%clk 0:02:35]}  Bf5 {[%clk 0:02:42]} 8. Nbd2 {[%clk 0:02:35]}  Qc8 {[%clk 0:02:41]} 9. Nb3 {[%clk 0:02:33]}  Bh3 {[%clk 0:02:35]} 10. Bf4 {[%clk 0:02:30]}  Bxg2 {[%clk 0:02:34]} 11. Kxg2 {[%clk 0:02:31]}  Nbd7 {[%clk 0:02:32]} 12. h3 {[%clk 0:02:28]}  Ne4 {[%clk 0:02:25]} 13. Nfd2 {[%clk 0:02:20]}  Nxd2 {[%clk 0:02:08]} 14. Qxd2 {[%clk 0:02:19]}  e5 {[%clk 0:02:03]} 15. dxe5 {[%clk 0:02:14]}  Nxe5 {[%clk 0:02:03]} 16. Bxe5 {[%clk 0:02:04]}  Bxe5 {[%clk 0:02:03]} 17. e4 {[%clk 0:02:05]}  Rd8 {[%clk 0:01:52]} 18. exd5 {[%clk 0:02:00]}  Rxd5 {[%clk 0:01:51]} 19. Qe2 {[%clk 0:01:51]}  Bf6 {[%clk 0:01:48]} 20. Rad1 {[%clk 0:01:47]}  Qf5 {[%clk 0:01:41]} 21. Rxd5 {[%clk 0:01:15]}  Qxd5+ {[%clk 0:01:39]} 22. Qf3 {[%clk 0:01:15]}  Rd8 {[%clk 0:01:37]} 23. Qxd5 {[%clk 0:01:11]}  Rxd5 {[%clk 0:01:36]} 24. Re8+ {[%clk 0:01:11]}  Kg7 {[%clk 0:01:36]} 25. Rb8 {[%clk 0:01:11]}  Rb5 {[%clk 0:01:36]} 26. Kf3 {[%clk 0:01:05]}  a5 {[%clk 0:01:33]} 27. Ra8 {[%clk 0:01:05]}  b6 {[%clk 0:01:27]} 28. Ke4 {[%clk 0:01:04]}  h5 {[%clk 0:01:25]} 29. Kd3 {[%clk 0:00:57]}  Rf5 {[%clk 0:01:22]} 30. f4 {[%clk 0:00:57]}  h4 {[%clk 0:01:22]} 31. gxh4 {[%clk 0:00:49]}  Rxf4 {[%clk 0:01:21]} 32. Ra6 {[%clk 0:00:49]}  a4 {[%clk 0:01:17]} 33. Nd2 {[%clk 0:00:49]}  b5 {[%clk 0:01:09]} 34. Rxc6 {[%clk 0:00:48]}  Rxh4 {[%clk 0:01:08]} 35. Rb6 {[%clk 0:00:37]}  a3 {[%clk 0:01:07]} 36. bxa3 {[%clk 0:00:18]}  Rxh3+ {[%clk 0:01:07]} 37. Ke2 {[%clk 0:00:18]}  Bxc3 {[%clk 0:01:05]} 38. Ne4 {[%clk 0:00:16]}  Bd4 {[%clk 0:01:04]} 39. Rb7 {[%clk 0:00:06]}  Re3+ {[%clk 0:01:04]} 0-1


[Site "https://www.chess.com"]

[Event "Titled Tuesday Blitz September 13 Late 2022"]
[White "Marjanovic, Annamaria"]
[Black "Kollars, Dmitrij"]
[WhiteFideId "750930"]
[BlackFideId "12909572"]
[WhiteElo "2156"]
[BlackElo "2584"]
[Result "0-1"]
[Round "02"]
[TimeControl "180+1"]
[Date "2022.09.13"]
[WhiteClock "0:01:28"]
[BlackClock "0:02:17"]

1. c4 {[%clk 0:03:00]}  e6 {[%clk 0:02:59]} 2. g3 {[%clk 0:03:00]}  d5 {[%clk 0:02:58]} 3. Bg2 {[%clk 0:03:00]}  d4 {[%clk 0:02:59]} 4. Nf3 {[%clk 0:03:00]}  Nc6 {[%clk 0:02:59]} 5. O-O {[%clk 0:02:59]}  Bc5 {[%clk 0:02:59]} 6. d3 {[%clk 0:02:59]}  a5 {[%clk 0:02:59]} 7. e3 {[%clk 0:02:57]}  Nge7 {[%clk 0:02:58]} 8. b3 {[%clk 0:02:47]}  O-O {[%clk 0:02:56]} 9. e4 {[%clk 0:02:46]}  e5 {[%clk 0:02:44]} 10. h3 {[%clk 0:02:30]}  f6 {[%clk 0:02:39]} 11. Na3 {[%clk 0:02:27]}  Be6 {[%clk 0:02:35]} 12. Nc2 {[%clk 0:02:27]}  Rb8 {[%clk 0:02:34]} 13. Ba3 {[%clk 0:02:14]}  Qd6 {[%clk 0:02:32]} 14. Bxc5 {[%clk 0:02:13]}  Qxc5 {[%clk 0:02:33]} 15. Rb1 {[%clk 0:02:08]}  b5 {[%clk 0:02:31]} 16. Nd2 {[%clk 0:01:57]}  bxc4 {[%clk 0:02:26]} 17. Nxc4 {[%clk 0:01:57]}  Bxc4 {[%clk 0:02:23]} 18. bxc4 {[%clk 0:01:57]}  Rxb1 {[%clk 0:02:22]} 19. Qxb1 {[%clk 0:01:58]}  Rb8 {[%clk 0:02:22]} 20. Qa1 {[%clk 0:01:55]}  Nb4 {[%clk 0:02:20]} 21. Nxb4 {[%clk 0:01:49]}  Qxb4 {[%clk 0:02:21]} 22. a3 {[%clk 0:01:47]}  Qc3 {[%clk 0:02:20]} 23. Qxc3 {[%clk 0:01:39]}  dxc3 {[%clk 0:02:20]} 24. Rc1 {[%clk 0:01:39]}  Rb3 {[%clk 0:02:19]} 25. a4 {[%clk 0:01:40]}  Nc6 {[%clk 0:02:18]} 26. Bf3 {[%clk 0:01:32]}  Nd4 {[%clk 0:02:16]} 27. Bd1 {[%clk 0:01:33]}  c2 {[%clk 0:02:16]} 28. Bxc2 {[%clk 0:01:28]}  Ne2+ {[%clk 0:02:16]} 29. Kf1 {[%clk 0:01:28]}  Nxc1 {[%clk 0:02:17]} 30. Bxb3 {[%clk 0:01:28]}  Nxb3 {[%clk 0:02:18]} 31. Ke2 {[%clk 0:01:28]}  Nc5 {[%clk 0:02:17]} 32. Kd2 {[%clk 0:01:28]}  Nxa4 {[%clk 0:02:17]} 0-1


[Site "https://www.chess.com"]

[Event "Titled Tuesday Blitz September 13 Late 2022"]
[White "Melkumyan, Hrant"]
[Black "Dev, Shah"]
[WhiteFideId "13302485"]
[BlackFideId "35019058"]
[WhiteElo "2604"]
[BlackElo "2048"]
[Result "0-1"]
[Round "02"]
[TimeControl "180+1"]
[Date "2022.09.13"]
[WhiteClock "0:00:09"]
[BlackClock "0:00:07"]

1. d4 {[%clk 0:03:00]}  d5 {[%clk 0:02:59]} 2. c4 {[%clk 0:03:01]}  dxc4 {[%clk 0:02:58]} 3. Nf3 {[%clk 0:03:01]}  Nf6 {[%clk 0:02:59]} 4. e3 {[%clk 0:03:01]}  e6 {[%clk 0:02:59]} 5. Bxc4 {[%clk 0:03:02]}  c5 {[%clk 0:03:00]} 6. O-O {[%clk 0:03:01]}  a6 {[%clk 0:03:01]} 7. b3 {[%clk 0:03:01]}  cxd4 {[%clk 0:02:55]} 8. Nxd4 {[%clk 0:03:01]}  Be7 {[%clk 0:02:53]} 9. Bb2 {[%clk 0:03:01]}  O-O {[%clk 0:02:53]} 10. Nd2 {[%clk 0:03:00]}  b5 {[%clk 0:02:49]} 11. Be2 {[%clk 0:03:01]}  Bb7 {[%clk 0:02:46]} 12. Bf3 {[%clk 0:03:01]}  Qd7 {[%clk 0:02:44]} 13. a4 {[%clk 0:02:57]}  e5 {[%clk 0:02:36]} 14. Bxb7 {[%clk 0:02:50]}  Qxb7 {[%clk 0:02:36]} 15. Nf5 {[%clk 0:02:50]}  Nc6 {[%clk 0:02:28]} 16. Qf3 {[%clk 0:02:49]}  Bb4 {[%clk 0:02:15]} 17. Ne4 {[%clk 0:02:37]}  Nxe4 {[%clk 0:02:02]} 18. Qxe4 {[%clk 0:02:38]}  Rfe8 {[%clk 0:02:02]} 19. Rfc1 {[%clk 0:02:31]}  Rac8 {[%clk 0:01:52]} 20. axb5 {[%clk 0:01:54]}  axb5 {[%clk 0:01:52]} 21. h4 {[%clk 0:01:26]}  Bf8 {[%clk 0:01:37]} 22. h5 {[%clk 0:01:20]}  Qd7 {[%clk 0:01:35]} 23. Bc3 {[%clk 0:00:59]}  Qe6 {[%clk 0:01:23]} 24. Ra6 {[%clk 0:00:52]}  Qd7 {[%clk 0:01:09]} 25. Be1 {[%clk 0:00:41]}  Ne7 {[%clk 0:01:03]} 26. Nxe7+ {[%clk 0:00:34]}  Qxe7 {[%clk 0:00:57]} 27. Rca1 {[%clk 0:00:31]}  Qg5 {[%clk 0:00:51]} 28. h6 {[%clk 0:00:26]}  g6 {[%clk 0:00:50]} 29. Ra7 {[%clk 0:00:26]}  Bxh6 {[%clk 0:00:40]} 30. Qd5 {[%clk 0:00:26]}  Qf6 {[%clk 0:00:23]} 31. R1a6 {[%clk 0:00:26]}  Qf5 {[%clk 0:00:19]} 32. Ra1 {[%clk 0:00:13]}  Qe6 {[%clk 0:00:13]} 33. Qxb5 {[%clk 0:00:10]}  Rb8 {[%clk 0:00:14]} 34. Qa4 {[%clk 0:00:11]}  Qxb3 {[%clk 0:00:13]} 35. Qd7 {[%clk 0:00:11]}  Qe6 {[%clk 0:00:13]} 36. Qd1 {[%clk 0:00:10]}  Rbd8 {[%clk 0:00:13]} 37. Qf3 {[%clk 0:00:11]}  Rd7 {[%clk 0:00:13]} 38. R1a6 {[%clk 0:00:10]}  Rxa7 {[%clk 0:00:12]} 39. Rxe6 {[%clk 0:00:08]}  Rxe6 {[%clk 0:00:12]} 40. Bc3 {[%clk 0:00:09]}  e4 {[%clk 0:00:11]} 41. Qg3 {[%clk 0:00:08]}  Rae7 {[%clk 0:00:10]} 42. Qb8+ {[%clk 0:00:06]}  Re8 {[%clk 0:00:10]} 43. Qb5 {[%clk 0:00:05]}  Bg7 {[%clk 0:00:10]} 44. Bb4 {[%clk 0:00:06]}  Bf8 {[%clk 0:00:10]} 45. Bc3 {[%clk 0:00:06]}  Bg7 {[%clk 0:00:11]} 46. Ba5 {[%clk 0:00:06]}  Re5 {[%clk 0:00:11]} 47. Qc6 {[%clk 0:00:07]}  R8e6 {[%clk 0:00:10]} 48. Qc8+ {[%clk 0:00:07]}  Re8 {[%clk 0:00:10]} 49. Qc6 {[%clk 0:00:08]}  R8e6 {[%clk 0:00:11]} 50. Qc7 {[%clk 0:00:08]}  Re7 {[%clk 0:00:10]} 51. Qb6 {[%clk 0:00:08]}  R7e6 {[%clk 0:00:10]} 52. Qb8+ {[%clk 0:00:08]}  Re8 {[%clk 0:00:10]} 53. Qc7 {[%clk 0:00:08]}  R8e7 {[%clk 0:00:10]} 54. Qd8+ {[%clk 0:00:08]}  Re8 {[%clk 0:00:11]} 55. Qd2 {[%clk 0:00:09]}  Ra8 {[%clk 0:00:07]} 56. Bb4 {[%clk 0:00:08]}  Ra1+ {[%clk 0:00:06]} 57. Kh2 {[%clk 0:00:08]}  Rh5+ {[%clk 0:00:07]} 58. Kg3 {[%clk 0:00:09]}  Be5+ {[%clk 0:00:07]} 59. Kg4 {[%clk 0:00:09]}  f5# {[%clk 0:00:07]} 0-1


[Site "https://www.chess.com"]

[Event "Titled Tuesday Blitz September 13 Late 2022"]
[White "Nasuta, Grzegorz"]
[Black "Sarana, Alexey"]
[WhiteFideId "1141686"]
[BlackFideId "24133795"]
[WhiteElo "2354"]
[BlackElo "2689"]
[Result "0-1"]
[Round "02"]
[TimeControl "180+1"]
[Date "2022.09.13"]
[WhiteClock "0:00:18"]
[BlackClock "0:01:06"]

1. e4 {[%clk 0:03:00]}  c5 {[%clk 0:03:00]} 2. Nf3 {[%clk 0:02:59]}  d6 {[%clk 0:03:00]} 3. Bb5+ {[%clk 0:02:59]}  Bd7 {[%clk 0:03:00]} 4. Bxd7+ {[%clk 0:02:59]}  Nxd7 {[%clk 0:03:01]} 5. O-O {[%clk 0:02:59]}  Ngf6 {[%clk 0:03:00]} 6. Qe2 {[%clk 0:02:58]}  e6 {[%clk 0:02:59]} 7. b3 {[%clk 0:02:54]}  Be7 {[%clk 0:02:59]} 8. Bb2 {[%clk 0:02:54]}  O-O {[%clk 0:02:59]} 9. c4 {[%clk 0:02:54]}  a6 {[%clk 0:02:54]} 10. d4 {[%clk 0:02:54]}  cxd4 {[%clk 0:02:53]} 11. Nxd4 {[%clk 0:02:54]}  Qa5 {[%clk 0:02:51]} 12. Nc3 {[%clk 0:02:53]}  Rac8 {[%clk 0:02:51]} 13. Rad1 {[%clk 0:02:44]}  Rfe8 {[%clk 0:02:43]} 14. Kh1 {[%clk 0:02:41]}  Qh5 {[%clk 0:02:43]} 15. Qxh5 {[%clk 0:02:38]}  Nxh5 {[%clk 0:02:44]} 16. f4 {[%clk 0:02:29]}  Nc5 {[%clk 0:02:38]} 17. g3 {[%clk 0:02:26]}  Nf6 {[%clk 0:02:37]} 18. Rfe1 {[%clk 0:02:25]}  Red8 {[%clk 0:02:35]} 19. Kg2 {[%clk 0:02:23]}  h5 {[%clk 0:02:34]} 20. Kf3 {[%clk 0:02:17]}  Nfd7 {[%clk 0:02:34]} 21. Rd2 {[%clk 0:02:13]}  Bf6 {[%clk 0:02:34]} 22. Red1 {[%clk 0:02:13]}  Nb8 {[%clk 0:02:04]} 23. Nde2 {[%clk 0:02:01]}  Be7 {[%clk 0:02:04]} 24. h3 {[%clk 0:01:54]}  Nc6 {[%clk 0:02:00]} 25. g4 {[%clk 0:01:46]}  hxg4+ {[%clk 0:01:58]} 26. hxg4 {[%clk 0:01:47]}  g5 {[%clk 0:01:58]} 27. Rh1 {[%clk 0:01:30]}  Bf6 {[%clk 0:01:40]} 28. Ng3 {[%clk 0:00:35]}  Nd4+ {[%clk 0:01:16]} 29. Kg2 {[%clk 0:00:22]}  gxf4 {[%clk 0:01:15]} 30. Nh5 {[%clk 0:00:22]}  f3+ {[%clk 0:01:16]} 31. Kf2 {[%clk 0:00:20]}  Be5 {[%clk 0:01:14]} 32. Nd1 {[%clk 0:00:19]}  Nxe4+ {[%clk 0:01:14]} 33. Ke3 {[%clk 0:00:18]}  Nxd2 {[%clk 0:01:12]} 34. Bxd4 {[%clk 0:00:19]}  Bxd4+ {[%clk 0:01:12]} 35. Kxd4 {[%clk 0:00:20]}  d5 {[%clk 0:01:11]} 36. Nf6+ {[%clk 0:00:19]}  Kg7 {[%clk 0:01:11]} 37. Ke5 {[%clk 0:00:19]}  dxc4 {[%clk 0:01:07]} 38. Nh5+ {[%clk 0:00:18]}  Kf8 {[%clk 0:01:06]} 0-1


[Site "https://www.chess.com"]

[Event "Titled Tuesday Blitz September 13 Late 2022"]
[White "Petrovic, Aleksa"]
[Black "Ozen, Bahadir"]
[WhiteFideId "967629"]
[BlackFideId "6337058"]
[WhiteElo "2262"]
[BlackElo "2503"]
[Result "1/2-1/2"]
[Round "02"]
[TimeControl "180+1"]
[Date "2022.09.13"]
[WhiteClock "0:00:48"]
[BlackClock "0:00:42"]

1. c4 {[%clk 0:03:00]}  c6 {[%clk 0:02:59]} 2. b3 {[%clk 0:02:58]}  d5 {[%clk 0:02:59]} 3. Nf3 {[%clk 0:02:58]}  Bf5 {[%clk 0:02:53]} 4. Bb2 {[%clk 0:02:57]}  e6 {[%clk 0:02:53]} 5. g3 {[%clk 0:02:56]}  h6 {[%clk 0:02:53]} 6. Bg2 {[%clk 0:02:56]}  Nf6 {[%clk 0:02:53]} 7. O-O {[%clk 0:02:56]}  Be7 {[%clk 0:02:53]} 8. d3 {[%clk 0:02:56]}  O-O {[%clk 0:02:52]} 9. Nbd2 {[%clk 0:02:56]}  Bh7 {[%clk 0:02:49]} 10. a3 {[%clk 0:02:56]}  a5 {[%clk 0:02:49]} 11. Ra2 {[%clk 0:02:56]}  Nbd7 {[%clk 0:02:48]} 12. Qa1 {[%clk 0:02:55]}  Qb6 {[%clk 0:02:32]} 13. Rb1 {[%clk 0:02:55]}  Rfc8 {[%clk 0:02:31]} 14. Bc3 {[%clk 0:02:45]}  Qd8 {[%clk 0:02:25]} 15. b4 {[%clk 0:02:44]}  axb4 {[%clk 0:02:21]} 16. axb4 {[%clk 0:02:44]}  Rxa2 {[%clk 0:02:22]} 17. Qxa2 {[%clk 0:02:45]}  Ra8 {[%clk 0:02:18]} 18. Qb2 {[%clk 0:02:45]}  Nb6 {[%clk 0:02:12]} 19. Qb3 {[%clk 0:02:07]}  dxc4 {[%clk 0:01:46]} 20. Nxc4 {[%clk 0:02:06]}  Nxc4 {[%clk 0:01:46]} 21. Qxc4 {[%clk 0:02:07]}  Qd5 {[%clk 0:01:42]} 22. Ne5 {[%clk 0:01:51]}  Qxc4 {[%clk 0:01:41]} 23. Nxc4 {[%clk 0:01:52]}  Nd5 {[%clk 0:01:41]} 24. Bd2 {[%clk 0:01:41]}  Nc7 {[%clk 0:01:15]} 25. Na5 {[%clk 0:01:37]}  Nd5 {[%clk 0:01:08]} 26. Nxb7 {[%clk 0:01:31]}  Ra2 {[%clk 0:01:07]} 27. Rd1 {[%clk 0:01:11]}  Nxb4 {[%clk 0:01:04]} 28. Kf1 {[%clk 0:01:03]}  Nd5 {[%clk 0:00:53]} 29. Na5 {[%clk 0:01:02]}  c5 {[%clk 0:00:44]} 30. Nc4 {[%clk 0:00:53]}  f6 {[%clk 0:00:43]} 31. Rb1 {[%clk 0:00:48]}  Nb4 {[%clk 0:00:42]} 1/2-1/2


[Site "https://www.chess.com"]

[Event "Titled Tuesday Blitz September 13 Late 2022"]
[White "Pranav, V"]
[Black "Dimitrov, Atanas"]
[WhiteFideId "25060783"]
[BlackFideId "2901315"]
[WhiteElo "2390"]
[BlackElo "2653"]
[Result "0-1"]
[Round "02"]
[TimeControl "180+1"]
[Date "2022.09.13"]
[WhiteClock "0:00:02"]
[BlackClock "0:00:12"]

1. Nf3 {[%clk 0:03:00]}  Nf6 {[%clk 0:03:00]} 2. g3 {[%clk 0:03:01]}  g6 {[%clk 0:03:00]} 3. Bg2 {[%clk 0:03:02]}  Bg7 {[%clk 0:03:00]} 4. O-O {[%clk 0:03:02]}  d5 {[%clk 0:03:01]} 5. d3 {[%clk 0:03:02]}  O-O {[%clk 0:03:01]} 6. Nbd2 {[%clk 0:03:03]}  c5 {[%clk 0:03:01]} 7. e4 {[%clk 0:03:03]}  Nc6 {[%clk 0:03:01]} 8. Re1 {[%clk 0:03:03]}  e5 {[%clk 0:02:58]} 9. a4 {[%clk 0:03:03]}  Re8 {[%clk 0:02:58]} 10. exd5 {[%clk 0:03:02]}  Nxd5 {[%clk 0:02:57]} 11. Ne4 {[%clk 0:03:02]}  b6 {[%clk 0:02:53]} 12. Bd2 {[%clk 0:02:47]}  Bb7 {[%clk 0:02:40]} 13. a5 {[%clk 0:02:45]}  h6 {[%clk 0:02:33]} 14. a6 {[%clk 0:02:41]}  Bc8 {[%clk 0:02:33]} 15. Nc3 {[%clk 0:02:42]}  Be6 {[%clk 0:02:33]} 16. Qc1 {[%clk 0:02:40]}  Kh7 {[%clk 0:02:32]} 17. Nb5 {[%clk 0:02:31]}  Qd7 {[%clk 0:02:27]} 18. Bc3 {[%clk 0:02:23]}  Bg4 {[%clk 0:02:14]} 19. Na3 {[%clk 0:02:16]}  Nd4 {[%clk 0:02:01]} 20. Bxd4 {[%clk 0:02:11]}  exd4 {[%clk 0:02:01]} 21. Nc4 {[%clk 0:02:10]}  Rxe1+ {[%clk 0:01:58]} 22. Qxe1 {[%clk 0:02:08]}  Re8 {[%clk 0:01:51]} 23. Qf1 {[%clk 0:02:08]}  Nb4 {[%clk 0:01:48]} 24. Qd1 {[%clk 0:01:42]}  Qe6 {[%clk 0:01:33]} 25. Qd2 {[%clk 0:01:26]}  Qf6 {[%clk 0:01:23]} 26. Qd1 {[%clk 0:01:16]}  Kg8 {[%clk 0:01:12]} 27. Na3 {[%clk 0:00:59]}  Nxa6 {[%clk 0:00:58]} 28. h3 {[%clk 0:00:54]}  Bd7 {[%clk 0:00:53]} 29. Nc4 {[%clk 0:00:52]}  Bb5 {[%clk 0:00:51]} 30. Nfd2 {[%clk 0:00:52]}  Qe7 {[%clk 0:00:47]} 31. Bd5 {[%clk 0:00:42]}  Nb4 {[%clk 0:00:46]} 32. Bf3 {[%clk 0:00:32]}  Bc6 {[%clk 0:00:46]} 33. Bxc6 {[%clk 0:00:30]}  Nxc6 {[%clk 0:00:47]} 34. Qf3 {[%clk 0:00:31]}  Nb4 {[%clk 0:00:44]} 35. Rc1 {[%clk 0:00:23]}  Qe2 {[%clk 0:00:38]} 36. Qb7 {[%clk 0:00:22]}  Re7 {[%clk 0:00:37]} 37. Qb8+ {[%clk 0:00:16]}  Kh7 {[%clk 0:00:37]} 38. b3 {[%clk 0:00:07]}  Nxc2 {[%clk 0:00:33]} 39. Ne4 {[%clk 0:00:02]}  Qxd3 {[%clk 0:00:29]} 40. Ned6 {[%clk 0:00:02]}  Ne1 {[%clk 0:00:21]} 41. Qd8 {[%clk 0:00:01]}  Qe2 {[%clk 0:00:17]} 42. Nxf7 {[%clk 0:00:01]}  Rxf7 {[%clk 0:00:15]} 43. f4 {[%clk 0:00:01]}  Nd3 {[%clk 0:00:15]} 44. Nd6 {[%clk 0:00:01]}  Qf2+ {[%clk 0:00:14]} 45. Kh1 {[%clk 0:00:01]}  Qf3+ {[%clk 0:00:15]} 46. Kh2 {[%clk 0:00:01]}  Nxc1 {[%clk 0:00:12]} 47. Nxf7 {[%clk 0:00:01]}  Ne2 {[%clk 0:00:12]} 48. Qe8 {[%clk 0:00:01]}  Qxg3+ {[%clk 0:00:12]} 49. Kh1 {[%clk 0:00:02]}  Qg1# {[%clk 0:00:12]} 0-1


[Site "https://www.chess.com"]

[Event "Titled Tuesday Blitz September 13 Late 2022"]
[White "Putnam, Liam"]
[Black "Boruchovsky, Avital"]
[WhiteFideId "30938279"]
[BlackFideId "2800055"]
[WhiteElo "2031"]
[BlackElo "2466"]
[Result "1-0"]
[Round "02"]
[TimeControl "180+1"]
[Date "2022.09.13"]
[WhiteClock "0:00:10"]
[BlackClock "0:00:12"]

1. e4 {[%clk 0:03:00]}  e6 {[%clk 0:02:59]} 2. d4 {[%clk 0:03:00]}  d5 {[%clk 0:02:59]} 3. Nd2 {[%clk 0:03:00]}  c5 {[%clk 0:02:55]} 4. Ngf3 {[%clk 0:02:55]}  Nf6 {[%clk 0:02:54]} 5. exd5 {[%clk 0:02:49]}  exd5 {[%clk 0:02:53]} 6. Bb5+ {[%clk 0:02:41]}  Bd7 {[%clk 0:02:54]} 7. Bxd7+ {[%clk 0:02:12]}  Nbxd7 {[%clk 0:02:54]} 8. O-O {[%clk 0:02:12]}  Be7 {[%clk 0:02:54]} 9. dxc5 {[%clk 0:02:12]}  Nxc5 {[%clk 0:02:55]} 10. Re1 {[%clk 0:02:07]}  O-O {[%clk 0:02:54]} 11. Nb3 {[%clk 0:02:07]}  Nce4 {[%clk 0:02:55]} 12. Nbd4 {[%clk 0:02:05]}  Re8 {[%clk 0:02:53]} 13. c3 {[%clk 0:02:04]}  a5 {[%clk 0:02:45]} 14. a4 {[%clk 0:02:04]}  Bc5 {[%clk 0:02:41]} 15. Be3 {[%clk 0:02:02]}  Ng4 {[%clk 0:02:38]} 16. h3 {[%clk 0:01:59]}  Nxe3 {[%clk 0:02:38]} 17. Rxe3 {[%clk 0:02:00]}  Qb6 {[%clk 0:02:38]} 18. Qe2 {[%clk 0:01:53]}  Nd6 {[%clk 0:02:33]} 19. Rb1 {[%clk 0:01:29]}  h6 {[%clk 0:02:21]} 20. b3 {[%clk 0:01:22]}  Rxe3 {[%clk 0:02:17]} 21. Qxe3 {[%clk 0:01:22]}  Re8 {[%clk 0:02:17]} 22. Qd3 {[%clk 0:01:20]}  Ne4 {[%clk 0:02:15]} 23. b4 {[%clk 0:01:16]}  Bxd4 {[%clk 0:01:46]} 24. Qxd4 {[%clk 0:01:15]}  Qc6 {[%clk 0:01:08]} 25. Re1 {[%clk 0:00:58]}  Qxa4 {[%clk 0:01:05]} 26. Qxd5 {[%clk 0:00:48]}  Nxc3 {[%clk 0:01:04]} 27. Rxe8+ {[%clk 0:00:46]}  Qxe8 {[%clk 0:01:05]} 28. Qxb7 {[%clk 0:00:46]}  a4 {[%clk 0:01:02]} 29. Qa6 {[%clk 0:00:40]}  Qd7 {[%clk 0:00:22]} 30. b5 {[%clk 0:00:33]}  Kh7 {[%clk 0:00:14]} 31. b6 {[%clk 0:00:27]}  Qd1+ {[%clk 0:00:14]} 32. Kh2 {[%clk 0:00:27]}  Qd6+ {[%clk 0:00:14]} 33. g3 {[%clk 0:00:24]}  a3 {[%clk 0:00:15]} 34. Qc4 {[%clk 0:00:18]}  Qxb6 {[%clk 0:00:12]} 35. Kg2 {[%clk 0:00:03]}  a2 {[%clk 0:00:12]} 36. Qxc3 {[%clk 0:00:02]}  Qb1 {[%clk 0:00:12]} 37. Nd2 {[%clk 0:00:03]}  Qe1 {[%clk 0:00:10]} 38. Qd3+ {[%clk 0:00:03]}  g6 {[%clk 0:00:09]} 39. Nb3 {[%clk 0:00:03]}  a1=Q {[%clk 0:00:09]} 40. Nxa1 {[%clk 0:00:03]}  Qxa1 {[%clk 0:00:09]} 41. Qf3 {[%clk 0:00:04]}  Qa7 {[%clk 0:00:09]} 42. h4 {[%clk 0:00:05]}  h5 {[%clk 0:00:09]} 43. Kh2 {[%clk 0:00:05]}  Kg7 {[%clk 0:00:10]} 44. Kg2 {[%clk 0:00:06]}  Qe7 {[%clk 0:00:10]} 45. Qc3+ {[%clk 0:00:07]}  Kh6 {[%clk 0:00:10]} 46. Qf3 {[%clk 0:00:08]}  f5 {[%clk 0:00:10]} 47. Qc3 {[%clk 0:00:07]}  Kh7 {[%clk 0:00:10]} 48. Qf3 {[%clk 0:00:08]}  Qg7 {[%clk 0:00:10]} 49. Qf4 {[%clk 0:00:08]}  Qb7+ {[%clk 0:00:10]} 50. Kh2 {[%clk 0:00:07]}  Kg7 {[%clk 0:00:10]} 51. Qe5+ {[%clk 0:00:07]}  Kf7 {[%clk 0:00:11]} 52. Qf4 {[%clk 0:00:05]}  Qb6 {[%clk 0:00:09]} 53. Qc4+ {[%clk 0:00:05]}  Kf6 {[%clk 0:00:09]} 54. Qc3+ {[%clk 0:00:05]}  Ke6 {[%clk 0:00:10]} 55. Qe1+ {[%clk 0:00:04]}  Kd5 {[%clk 0:00:10]} 56. Qd2+ {[%clk 0:00:04]}  Qd4 {[%clk 0:00:10]} 57. Qe2 {[%clk 0:00:04]}  Qe4 {[%clk 0:00:09]} 58. Qb5+ {[%clk 0:00:04]}  Kd6 {[%clk 0:00:09]} 59. Qb6+ {[%clk 0:00:05]}  Qc6 {[%clk 0:00:09]} 60. Qd4+ {[%clk 0:00:05]}  Ke6 {[%clk 0:00:09]} 61. Qg7 {[%clk 0:00:04]}  Kd5 {[%clk 0:00:08]} 62. Qb2 {[%clk 0:00:03]}  Qc5 {[%clk 0:00:08]} 63. Qd2+ {[%clk 0:00:03]}  Ke4 {[%clk 0:00:08]} 64. Qe2+ {[%clk 0:00:04]}  Kd5 {[%clk 0:00:07]} 65. Qf3+ {[%clk 0:00:04]}  Ke5 {[%clk 0:00:07]} 66. Kg2 {[%clk 0:00:05]}  Qd4 {[%clk 0:00:07]} 67. Qe2+ {[%clk 0:00:05]}  Qe4+ {[%clk 0:00:08]} 68. Kf1 {[%clk 0:00:04]}  f4 {[%clk 0:00:07]} 69. Qb5+ {[%clk 0:00:04]}  Qd5 {[%clk 0:00:07]} 70. gxf4+ {[%clk 0:00:03]}  Ke4 {[%clk 0:00:07]} 71. Qe2+ {[%clk 0:00:02]}  Kxf4 {[%clk 0:00:07]} 72. Qe3+ {[%clk 0:00:03]}  Kf5 {[%clk 0:00:04]} 73. Qg5+ {[%clk 0:00:04]}  Ke4 {[%clk 0:00:04]} 74. Qxg6+ {[%clk 0:00:04]}  Kf4 {[%clk 0:00:04]} 75. Qg3+ {[%clk 0:00:04]}  Ke4 {[%clk 0:00:04]} 76. Qe3+ {[%clk 0:00:04]}  Kf5 {[%clk 0:00:03]} 77. Qg5+ {[%clk 0:00:05]}  Ke4 {[%clk 0:00:04]} 78. f3+ {[%clk 0:00:04]}  Kd4 {[%clk 0:00:04]} 79. Qd2+ {[%clk 0:00:04]}  Ke5 {[%clk 0:00:04]} 80. Qxd5+ {[%clk 0:00:03]}  Kxd5 {[%clk 0:00:05]} 81. Ke2 {[%clk 0:00:03]}  Kd4 {[%clk 0:00:05]} 82. Kd2 {[%clk 0:00:04]}  Kd5 {[%clk 0:00:05]} 83. Ke3 {[%clk 0:00:04]}  Ke5 {[%clk 0:00:05]} 84. Ke2 {[%clk 0:00:04]}  Kf5 {[%clk 0:00:06]} 85. Kf1 {[%clk 0:00:04]}  Kf4 {[%clk 0:00:07]} 86. Kf2 {[%clk 0:00:05]}  Kf5 {[%clk 0:00:08]} 87. Ke3 {[%clk 0:00:05]}  Ke5 {[%clk 0:00:08]} 88. f4+ {[%clk 0:00:06]}  Kf5 {[%clk 0:00:09]} 89. Kf3 {[%clk 0:00:06]}  Kf6 {[%clk 0:00:09]} 90. Ke4 {[%clk 0:00:07]}  Ke6 {[%clk 0:00:10]} 91. f5+ {[%clk 0:00:08]}  Kf6 {[%clk 0:00:11]} 92. Kf4 {[%clk 0:00:08]}  Kg7 {[%clk 0:00:10]} 93. Kg5 {[%clk 0:00:09]}  Kf7 {[%clk 0:00:11]} 94. Kxh5 {[%clk 0:00:10]}  Kf6 {[%clk 0:00:12]} 95. Kg4 {[%clk 0:00:10]} 1-0


[Site "https://www.chess.com"]